[Event "WYCC U18 Girls 2019"]
[Site "Mumbai"]
[Date "2019.10.03"]
[Round "2.9"]
[White "Nilssen, Ellen Fredericia"]
[Black "Zeliantsova, Kseniya"]
[Result "1-0"]
[ECO "E73"]
[WhiteElo "2137"]
[BlackElo "1994"]
[Annotator "NA"]
[PlyCount "85"]
[EventDate "2019.10.02"]
[EventType "swiss"]
[EventCountry "IND"]
[SourceTitle "playchess.com"]
[Source "ChessBase"]
[SourceQuality "1"]
[TimeControl "40/5400+30:1800+30"]

1. d4 Nf6 2. c4 g6 3. Nc3 Bg7 4. e4 d6 5. Be2 O-O 6. Bg5 c5 7. d5 h6 8. Be3 e6 9. Qd2 exd5 10. exd5 Kh7 11. h3 Qe7 12. Nf3 Na6 13. O-O Bf5 14. a3 Nc7 15. Rfe1 b5 16. Bxc5 Qd7 17. Bd4 bxc4 18. Bxc4 Rfe8 19. Rxe8 Rxe8 20. Re1 Rxe1+ 21. Nxe1 h5 22. Nf3 Kg8 23. Qe3 a6 24. b4 Nb5 25. Bxb5 axb5 26. Qe2 Qc8 27. Qxb5 Ne4 28. Ne2 Qc2 29. Be3 Nf6 30. Ned4 Qd1+ 31. Kh2 Bd7 32. Qb8+ Ne8 33. b5 Qd3 34. a4 g5 35. Qd8 g4 36. Qxd7 Nf6 37. Qd8+ Kh7 38. Ng5+ Kg6 39. Qe7 g3+ 40. fxg3 h4 41. Qxf7+ Kh6 42. Nge6+ Qxe3 43. Nf5+ {Bf8} 1-0

[Event "WYCC U18 Girls 2019"]
[Site "Mumbai"]
[Date "2019.10.03"]
[Round "2.10"]
[White "Nguyen, Hong Anh"]
[Black "Tarini Goyal"]
[Result "0-1"]
[ECO "A05"]
[WhiteElo "2023"]
[BlackElo "2128"]
[Annotator "NA"]
[PlyCount "77"]
[EventDate "2019.10.02"]
[EventType "swiss"]
[EventCountry "IND"]
[SourceTitle "playchess.com"]
[Source "ChessBase"]
[SourceQuality "1"]
[TimeControl "40/5400+30:1800+30"]

1. Nf3 {[%emt 0:00:00]} Nf6 {[%emt 0:00:20]} 2. g3 {[%emt 0:00:00]} d5 {[%emt 0:00:27]} 3. Bg2 {[%emt 0:00:16]} e6 {[%emt 0:00:41]} 4. O-O {[%emt 0:00:10]} Be7 {[%emt 0:02:10]} 5. d4 {[%emt 0:00:29]} b5 {[%emt 0:00:46]} 6. b3 {[%emt 0:04:43]} Bb7 {[%emt 0:04:15]} 7. c4 {[%emt 0:04:25]} bxc4 {[%emt 0:05:09]} 8. bxc4 {[%emt 0:00:46]} dxc4 {[%emt 0:03:14]} 9. Qa4+ {[%emt 0:02:48]} Bc6 {[%emt 0:10:15]} 10. Qxc4 {[%emt 0:00:35]} Bd5 {[%emt 0:02:18]} 11. Qc2 {[%emt 0:04:45]} Nc6 {[%emt 0:10:20]} 12. Nbd2 {[%emt 0:18:02]} Nb4 {[%emt 0:04:45]} 13. Qb1 {[%emt 0:02:19]} Rb8 {[%emt 0:06:11]} 14. a3 {[%emt 0:04:31]} Nc6 {[%emt 0:07:36]} 15. Qc2 {[%emt 0:03:59]} Na5 {[%emt 0:04:05]} 16. e4 {[%emt 0:07:40]} Ba8 {[%emt 0:01:18]} 17. Re1 {[%emt 0:03:06]} O-O {[%emt 0:02:09]} 18. Bb2 {[%emt 0:00:55]} c5 {[%emt 0:05:39]} 19. dxc5 {[%emt 0:13:56]} Rc8 {[%emt 0:00:52]} 20. Rad1 {[%emt 0:08:24]} Rxc5 {[%emt 0:01:28]} 21. Qb1 {[%emt 0:02:16]} Qb8 {[%emt 0:03:47]} 22. Bd4 {[%emt 0:01:39]} Rb5 {[%emt 0:03:05]} 23. Qa1 {[%emt 0:00:22]} Nb3 {[%emt 0:03:32]} 24. Nxb3 {[%emt 0:04:23]} Rxb3 {[%emt 0:00:06]} 25. Rb1 {[%emt 0:00:20]} Rxb1 {[%emt 0:06:03]} 26. Rxb1 {[%emt 0:00:03]} Qc7 {[%emt 0:00:10]} 27. Nd2 {[%emt 0:02:10]} Qa5 {[%emt 0:02:18]} 28. Nc4 {[%emt 0:02:00]} Qa4 {[%emt 0:01:07]} 29. Ne3 {[%emt 0:00:51]} Rd8 {[%emt 0:05:25]} 30. e5 {[%emt 0:06:16]} Ne4 {[%emt 0:00:51]} 31. Rd1 {[%emt 0:00:57]} Ng5 {[%emt 0:02:19]} 32. Bc5 {[%emt 0:01:39]} Rxd1+ {[%emt 0:02:13]} 33. Qxd1 {[%emt 0:00:39]} Qxd1+ {[%emt 0:00:11]} 34. Nxd1 {[%emt 0:00:02]} Nh3+ {[%emt 0:00:47]} 35. Bxh3 {[%emt 0:00:50]} Bxc5 {[%emt 0:00:07]} 36. Kf1 {[%emt 0:01:00]} Bf3 {[%emt 0:01:15]} 37. Nc3 {[%emt 0:00:39]} Bxa3 {[%emt 0:00:16]} 38. Nb5 {[%emt 0:00:28]} Bc5 {[%emt 0:00:07]} 39. Bg2 {[%emt 0:00:00]} 0-1

[Event "WYCC U18 Girls 2019"]
[Site "Mumbai"]
[Date "2019.10.03"]
[Round "2.11"]
[White "Kucharska, Honorata"]
[Black "Onur, Cigdem"]
[Result "1-0"]
[ECO "B40"]
[WhiteElo "2114"]
[BlackElo "1913"]
[Annotator "NA"]
[PlyCount "80"]
[EventDate "2019.10.02"]
[EventType "swiss"]
[EventCountry "IND"]
[SourceTitle "playchess.com"]
[Source "ChessBase"]
[SourceQuality "1"]
[TimeControl "40/5400+30:1800+30"]

1. e4 {[%emt 0:00:00]} c5 {[%emt 0:00:00]} 2. Nf3 {[%emt 0:00:00]} e6 {[%emt 0:00:00]} 3. d3 {[%emt 0:00:42]} d5 {[%emt 0:01:29]} 4. Nbd2 {[%emt 0:00:08]} Nc6 {[%emt 0:01:34]} 5. g3 {[%emt 0:00:06]} g6 {[%emt 0:00:11]} 6. Bg2 {[%emt 0:01:03]} Bg7 {[%emt 0:00:07]} 7. O-O {[%emt 0:01:39]} Nge7 {[%emt 0:00:08]} 8. Qe2 {[%emt 0:01:24]} O-O {[%emt 0:01:55]} 9. Re1 {[%emt 0:01:07]} b6 {[%emt 0:12:38]} 10. Nf1 {[%emt 0:03:32]} Ba6 {[%emt 0:14:03]} 11. e5 {[%emt 0:03:36]} Qc7 {[%emt 0:07:54]} 12. Bf4 {[%emt 0:05:00]} d4 {[%emt 0:21:41]} 13. Qd2 {[%emt 0:04:18]} Rad8 {[%emt 0:04:35]} 14. Bg5 {[%emt 0:05:42]} Rd7 {[%emt 0:09:09]} 15. Bh6 {[%emt 0:04:07]} Re8 {[%emt 0:04:19]} 16. Bxg7 {[%emt 0:01:43]} Kxg7 {[%emt 0:00:06]} 17. Re4 {[%emt 0:02:39]} Nb4 {[%emt 0:07:46]} 18. Ng5 {[%emt 0:07:16]} Nf5 {[%emt 0:03:02]} 19. a3 {[%emt 0:06:23]} Nd5 {[%emt 0:00:59]} 20. Nf3 {[%emt 0:04:45]} Bb7 {[%emt 0:06:05]} 21. g4 {[%emt 0:02:10]} Nh6 {[%emt 0:02:10]} 22. Ng3 {[%emt 0:00:35]} Ne7 {[%emt 0:00:34]} 23. Qg5 {[%emt 0:00:56]} Nhg8 {[%emt 0:00:31]} 24. Nh5+ {[%emt 0:04:03]} Kh8 {[%emt 0:00:04]} 25. Nf6 {[%emt 0:01:12]} Nxf6 {[%emt 0:00:17]} 26. exf6 {[%emt 0:03:31]} Ng8 {[%emt 0:00:19]} 27. Ne5 {[%emt 0:04:54]} Bxe4 {[%emt 0:01:05]} 28. Bxe4 {[%emt 0:00:20]} Rd5 {[%emt 0:00:43]} 29. Bxd5 {[%emt 0:01:51]} exd5 {[%emt 0:00:01]} 30. Re1 {[%emt 0:00:19]} h6 {[%emt 0:00:45]} 31. Qf4 {[%emt 0:00:17]} Rc8 {[%emt 0:00:44]} 32. g5 {[%emt 0:03:01]} hxg5 {[%emt 0:00:31]} 33. Qxg5 {[%emt 0:00:29]} Kh7 {[%emt 0:00:09]} 34. Qh4+ {[%emt 0:00:46]} Nh6 {[%emt 0:00:06]} 35. Nf3 {[%emt 0:01:49]} Qd8 {[%emt 0:01:11]} 36. Re7 {[%emt 0:00:25]} Qf8 {[%emt 0:00:23]} 37. Rxf7+ {[%emt 0:00:44]} Qxf7 {[%emt 0:00:18]} 38. Ng5+ {[%emt 0:00:02]} Kg8 {[%emt 0:00:12]} 39. Nxf7 {[%emt 0:00:06]} Nxf7 {[%emt 0:00:34]} 40. Qg4 {[%emt 0:00:07]} Rc7 {[%emt 0:01:06]} 1-0

[Event "WYCC U18 Girls 2019"]
[Site "Mumbai"]
[Date "2019.10.03"]
[Round "2.13"]
[White "Sowa, Wiktoria"]
[Black "Schulze, Lara"]
[Result "0-1"]
[ECO "B50"]
[WhiteElo "2016"]
[BlackElo "2327"]
[Annotator "NA"]
[PlyCount "72"]
[EventDate "2019.10.02"]
[EventType "swiss"]
[EventCountry "IND"]
[SourceTitle "playchess.com"]
[Source "ChessBase"]
[SourceQuality "1"]
[TimeControl "40/5400+30:1800+30"]

1. e4 {[%emt 0:00:00]} c5 {[%emt 0:00:00]} 2. Nf3 {[%emt 0:00:00]} d6 {[%emt 0:00:00]} 3. d4 {[%emt 0:00:00]} Nf6 {[%emt 0:00:00]} 4. dxc5 {[%emt 0:00:40]} Nxe4 {[%emt 0:00:00]} 5. cxd6 {[%emt 0:00:18]} Nc6 {[%emt 0:00:08]} 6. Bd3 {[%emt 0:01:22]} Nxd6 {[%emt 0:00:15]} 7. h3 {[%emt 0:02:20]} g6 {[%emt 0:05:27]} 8. O-O {[%emt 0:05:21]} Bg7 {[%emt 0:00:50]} 9. c3 {[%emt 0:01:36]} O-O {[%emt 0:00:35]} 10. Bg5 {[%emt 0:01:24]} h6 {[%emt 0:05:38]} 11. Bf4 {[%emt 0:08:55]} e5 {[%emt 0:01:51]} 12. Bh2 {[%emt 0:01:03]} Re8 {[%emt 0:17:33]} 13. Bc2 {[%emt 0:03:37]} Bf5 {[%emt 0:03:50]} 14. Na3 {[%emt 0:04:33]} Bxc2 {[%emt 0:07:40]} 15. Nxc2 {[%emt 0:05:45]} Nc4 {[%emt 0:03:25]} 16. Qe2 {[%emt 0:11:04]} Nxb2 {[%emt 0:06:47]} 17. Nb4 {[%emt 0:11:07]} Nxb4 {[%emt 0:04:53]} 18. Qxb2 {[%emt 0:00:46]} Nd5 {[%emt 0:02:31]} 19. Rad1 {[%emt 0:11:27]} Qb6 {[%emt 0:04:10]} 20. Qa3 {[%emt 0:02:46]} Qc6 {[%emt 0:05:11]} 21. Rc1 {[%emt 0:03:06]} Nb6 {[%emt 0:05:39]} 22. Rfd1 {[%emt 0:03:39]} Nc4 {[%emt 0:01:41]} 23. Qb3 {[%emt 0:00:37]} b5 {[%emt 0:01:16]} 24. Ne1 {[%emt 0:02:56]} e4 {[%emt 0:04:46]} 25. Nc2 {[%emt 0:01:37]} Rad8 {[%emt 0:10:43]} 26. Nd4 {[%emt 0:02:11]} Qc5 {[%emt 0:02:07]} 27. Bf4 {[%emt 0:02:22]} e3 {[%emt 0:01:22]} 28. Bxe3 {[%emt 0:02:41]} Nxe3 {[%emt 0:00:50]} 29. fxe3 {[%emt 0:00:22]} Rxe3 {[%emt 0:01:23]} 30. Rf1 {[%emt 0:00:46]} Rxc3 {[%emt 0:02:54]} 31. Qxf7+ {[%emt 0:00:22]} Kh7 {[%emt 0:00:53]} 32. Rce1 {[%emt 0:01:54]} Qxd4+ {[%emt 0:00:26]} 33. Kh1 {[%emt 0:00:08]} Rd7 {[%emt 0:00:34]} 34. Qe8 {[%emt 0:00:35]} Qd5 {[%emt 0:00:49]} 35. Kg1 {[%emt 0:00:32]} Rc2 {[%emt 0:00:41]} 36. Re6 {[%emt 0:00:20]} Qxg2# {[%emt 0:00:11]} 0-1

[Event "WYCC U18 Girls 2019"]
[Site "Mumbai"]
[Date "2019.10.03"]
[Round "2.14"]
[White "Munkhzul, Turmunkh"]
[Black "Yuti Mayur Patel"]
[Result "1-0"]
[ECO "C78"]
[WhiteElo "2332"]
[BlackElo "1457"]
[Annotator "NA"]
[PlyCount "71"]
[EventDate "2019.10.02"]
[EventType "swiss"]
[EventCountry "IND"]
[SourceTitle "playchess.com"]
[Source "ChessBase"]
[SourceQuality "1"]
[TimeControl "40/5400+30:1800+30"]

1. e4 e5 2. Nf3 Nc6 3. Bb5 a6 4. Ba4 Nf6 5. O-O b5 6. Bb3 Bc5 7. c3 d6 8. d4 exd4 9. cxd4 Bb6 10. h3 h6 11. Nc3 O-O 12. e5 dxe5 13. dxe5 Nd7 14. Bd5 Bb7 15. e6 Nf6 16. exf7+ Kh8 17. Bxc6 Qxd1 18. Rxd1 Bxc6 19. Ne5 Be4 20. Nxe4 Nxe4 21. Ng6+ Kh7 22. Nxf8+ Rxf8 23. Be3 Bxe3 24. fxe3 Rxf7 25. Rf1 Re7 26. Rad1 Nd6 27. Rd3 Re6 28. Rc1 Re7 29. b3 Nb7 30. Rc6 b4 31. e4 a5 32. e5 Rxe5 33. Rxc7 Nc5 34. Rg3 Ne6 35. Re7 Re2 36. Rgxg7+ 1-0

[Event "WYCC U18 Girls 2019"]
[Site "Mumbai"]
[Date "2019.10.03"]
[Round "3.1"]
[White "Shuvalova, Polina"]
[Black "Cervantes Landeiro, Thalia"]
[Result "1/2-1/2"]
[ECO "B90"]
[WhiteElo "2412"]
[BlackElo "2176"]
[Annotator "NA"]
[PlyCount "97"]
[EventDate "2019.10.02"]
[EventType "swiss"]
[EventCountry "IND"]
[SourceTitle "playchess.com"]
[Source "ChessBase"]
[SourceQuality "1"]
[TimeControl "40/5400+30:1800+30"]

1. e4 {[%emt 0:00:00]} c5 {[%emt 0:00:00]} 2. Nf3 {[%emt 0:00:00]} d6 {[%emt 0:00:00]} 3. d4 {[%emt 0:00:00]} cxd4 {[%emt 0:00:00]} 4. Nxd4 {[%emt 0:00:00]} Nf6 {[%emt 0:00:01]} 5. Nc3 {[%emt 0:00:00]} a6 {[%emt 0:00:07]} 6. a3 {[%emt 0:00:00]} e5 {[%emt 0:04:51]} 7. Nf5 {[%emt 0:00:08]} d5 {[%emt 0:13:39]} 8. Bg5 {[%emt 0:00:16]} d4 {[%emt 0:02:53]} 9. Bxf6 {[%emt 0:00:06]} Qxf6 {[%emt 0:10:55]} 10. Nd5 {[%emt 0:00:06]} Qc6 {[%emt 0:02:02]} 11. c4 {[%emt 0:00:14]} g6 {[%emt 0:16:24]} 12. Nxd4 {[%emt 0:02:13]} exd4 {[%emt 0:01:35]} 13. Qxd4 {[%emt 0:00:06]} f6 {[%emt 0:04:55]} 14. b4 {[%emt 0:00:14]} Kf7 {[%emt 0:04:39]} 15. c5 {[%emt 0:07:03]} Nd7 {[%emt 0:05:19]} 16. Bc4 {[%emt 0:07:13]} Ne5 {[%emt 0:03:17]} 17. Bb3 {[%emt 0:02:13]} Be6 {[%emt 0:01:51]} 18. O-O {[%emt 0:05:42]} Nd7 {[%emt 0:09:11]} 19. f4 {[%emt 0:05:47]} Bxc5 {[%emt 0:02:16]} 20. bxc5 {[%emt 0:00:09]} Qxc5 {[%emt 0:00:18]} 21. Rad1 {[%emt 0:01:14]} Kg7 {[%emt 0:06:35]} 22. f5 {[%emt 0:16:11]} gxf5 {[%emt 0:01:12]} 23. exf5 {[%emt 0:03:57]} Bf7 {[%emt 0:01:09]} 24. Rf3 {[%emt 0:03:04]} Rhd8 {[%emt 0:03:07]} 25. Nf4 {[%emt 0:11:40]} Qxd4+ {[%emt 0:01:16]} 26. Rxd4 {[%emt 0:01:17]} Nc5 {[%emt 0:01:18]} 27. Rxd8 {[%emt 0:10:48]} Rxd8 {[%emt 0:00:03]} 28. Bxf7 {[%emt 0:03:46]} Kxf7 {[%emt 0:00:04]} 29. Kf1 {[%emt 0:00:29]} Rd4 {[%emt 0:01:53]} 30. Ke2 {[%emt 0:02:33]} b5 {[%emt 0:01:20]} 31. g3 {[%emt 0:03:03]} a5 {[%emt 0:00:47]} 32. Rc3 {[%emt 0:01:16]} Re4+ {[%emt 0:00:29]} 33. Kf3 {[%emt 0:03:11]} Re5 {[%emt 0:00:31]} 34. g4 {[%emt 0:00:06]} b4 {[%emt 0:00:58]} 35. axb4 {[%emt 0:00:21]} axb4 {[%emt 0:00:02]} 36. Rc4 {[%emt 0:00:45]} b3 {[%emt 0:00:30]} 37. Rb4 {[%emt 0:09:11]} Re1 {[%emt 0:01:26]} 38. Ne2 {[%emt 0:00:43]} Rb1 {[%emt 0:00:53]} 39. Ke3 {[%emt 0:01:22]} b2 {[%emt 0:00:58]} 40. Nc3 {[%emt 0:02:57]} Rc1 {[%emt 0:00:35]} 41. Kd2 {[%emt 0:05:04]} Ne4+ {[%emt 0:05:17]} 42. Rxe4 {[%emt 0:00:40]} Rxc3 {[%emt 0:00:17]} 43. Rb4 {[%emt 0:00:09]} Rh3 {[%emt 0:00:09]} 44. Rb7+ {[%emt 0:05:53]} Kg8 {[%emt 0:00:18]} 45. Ke2 {[%emt 0:01:42]} Rxh2+ {[%emt 0:01:47]} 46. Ke3 {[%emt 0:00:08]} Rg2 {[%emt 0:01:05]} 47. Kf3 {[%emt 0:00:26]} Rc2 {[%emt 0:00:11]} 48. Ke4 {[%emt 0:00:26]} Rd2 {[%emt 0:04:00]} 49. Ke3 {[%emt 0:00:14]} 1/2-1/2

[Event "WYCC U18 Girls 2019"]
[Site "Mumbai"]
[Date "2019.10.03"]
[Round "3.2"]
[White "Obolentseva, Alexandra"]
[Black "Nilssen, Ellen Fredericia"]
[Result "1/2-1/2"]
[ECO "D94"]
[WhiteElo "2282"]
[BlackElo "2137"]
[Annotator "NA"]
[PlyCount "60"]
[EventDate "2019.10.02"]
[EventType "swiss"]
[EventCountry "IND"]
[SourceTitle "playchess.com"]
[Source "ChessBase"]
[SourceQuality "1"]
[TimeControl "40/5400+30:1800+30"]

1. d4 {[%emt 0:00:00]} Nf6 {[%emt 0:00:00]} 2. c4 {[%emt 0:00:00]} g6 {[%emt 0:00:00]} 3. Nc3 {[%emt 0:00:00]} d5 {[%emt 0:00:00]} 4. Nf3 {[%emt 0:00:00]} Bg7 {[%emt 0:00:00]} 5. e3 {[%emt 0:00:00]} O-O {[%emt 0:00:02]} 6. cxd5 {[%emt 0:00:00]} Nxd5 {[%emt 0:00:12]} 7. Bc4 {[%emt 0:00:03]} Nb6 {[%emt 0:00:05]} 8. Bb3 {[%emt 0:00:06]} c5 {[%emt 0:00:28]} 9. O-O {[%emt 0:00:08]} cxd4 {[%emt 0:00:09]} 10. exd4 {[%emt 0:01:16]} Nc6 {[%emt 0:00:07]} 11. Qe2 {[%emt 0:00:25]} Bg4 {[%emt 0:05:09]} 12. Qe4 {[%emt 0:02:37]} Bxf3 {[%emt 0:08:51]} 13. Qxf3 {[%emt 0:00:06]} a5 {[%emt 0:11:04]} 14. Rd1 {[%emt 0:10:08]} a4 {[%emt 0:09:15]} 15. Bc2 {[%emt 0:00:05]} Nxd4 {[%emt 0:00:46]} 16. Qxb7 {[%emt 0:03:20]} a3 {[%emt 0:08:02]} 17. Bd3 {[%emt 0:03:20]} Rc8 {[%emt 0:05:36]} 18. Rb1 {[%emt 0:01:40]} Qc7 {[%emt 0:02:27]} 19. Qxc7 {[%emt 0:02:55]} Rxc7 {[%emt 0:00:02]} 20. Nb5 {[%emt 0:02:23]} Nxb5 {[%emt 0:04:29]} 21. Bxb5 {[%emt 0:00:09]} axb2 {[%emt 0:05:45]} 22. Bxb2 Ra8 {[%emt 0:02:16]} 23. Bxg7 {[%emt 0:08:32]} Kxg7 {[%emt 0:00:06]} 24. Rd2 {[%emt 0:00:37]} Na4 {[%emt 0:05:48]} 25. Bf1 {[%emt 0:04:37]} Nc3 {[%emt 0:02:51]} 26. Rbb2 {[%emt 0:00:06]} Rca7 {[%emt 0:03:56]} 27. Bc4 {[%emt 0:00:46]} Rc7 {[%emt 0:00:47]} 28. Bf1 {[%emt 0:00:22]} Rca7 {[%emt 0:00:05]} 29. Bc4 {[%emt 0:00:16]} Rc7 {[%emt 0:00:07]} 30. Bf1 {[%emt 0:00:26]} Rca7 {[%emt 0:00:23]} 1/2-1/2

[Event "WYCC U18 Girls 2019"]
[Site "Mumbai"]
[Date "2019.10.03"]
[Round "3.3"]
[White "Serikbay, Assel"]
[Black "Radeva, Viktoria"]
[Result "1/2-1/2"]
[ECO "E06"]
[WhiteElo "2208"]
[BlackElo "2277"]
[Annotator "NA"]
[PlyCount "94"]
[EventDate "2019.10.02"]
[EventType "swiss"]
[EventCountry "IND"]
[SourceTitle "playchess.com"]
[Source "ChessBase"]
[SourceQuality "1"]
[TimeControl "40/5400+30:1800+30"]

1. d4 {[%emt 0:00:00]} d5 {[%emt 0:00:00]} 2. Nf3 {[%emt 0:00:00]} Nf6 {[%emt 0:00:00]} 3. c4 {[%emt 0:00:00]} e6 {[%emt 0:00:00]} 4. g3 {[%emt 0:00:00]} Be7 {[%emt 0:00:00]} 5. Bg2 {[%emt 0:00:05]} O-O {[%emt 0:00:06]} 6. O-O {[%emt 0:00:21]} c6 {[%emt 0:00:05]} 7. Qc2 {[%emt 0:00:38]} b6 {[%emt 0:00:20]} 8. Nbd2 {[%emt 0:00:41]} Bb7 {[%emt 0:00:16]} 9. e4 {[%emt 0:00:58]} dxc4 {[%emt 0:00:37]} 10. Nxc4 {[%emt 0:00:44]} Nbd7 {[%emt 0:00:39]} 11. Ne3 {[%emt 0:02:20]} Rc8 {[%emt 0:10:19]} 12. Rd1 {[%emt 0:02:47]} Qc7 {[%emt 0:06:31]} 13. b3 {[%emt 0:04:04]} Qb8 {[%emt 0:01:54]} 14. Bb2 {[%emt 0:01:27]} Rfd8 {[%emt 0:02:56]} 15. Ne1 {[%emt 0:13:42]} Qa8 {[%emt 0:13:32]} 16. f4 {[%emt 0:09:32]} Bf8 {[%emt 0:13:34]} 17. Qe2 {[%emt 0:11:51]} Re8 {[%emt 0:08:12]} 18. Qc2 {[%emt 0:17:14]} a5 {[%emt 0:11:36]} 19. Rac1 {[%emt 0:05:38]} b5 {[%emt 0:06:27]} 20. a3 {[%emt 0:06:01]} Qa7 {[%emt 0:02:47]} 21. e5 {[%emt 0:08:06]} Nd5 {[%emt 0:00:43]} 22. Nxd5 {[%emt 0:00:13]} cxd5 {[%emt 0:00:11]} 23. Qe2 {[%emt 0:01:17]} Ba6 {[%emt 0:01:52]} 24. Bf1 {[%emt 0:02:04]} Nb8 {[%emt 0:01:35]} 25. Nd3 {[%emt 0:01:09]} b4 {[%emt 0:07:34]} 26. a4 {[%emt 0:01:37]} Rc6 {[%emt 0:02:18]} 27. Qf2 {[%emt 0:01:41]} Rec8 {[%emt 0:00:25]} 28. f5 {[%emt 0:02:39]} Rxc1 {[%emt 0:03:29]} 29. Rxc1 {[%emt 0:02:15]} Rxc1 {[%emt 0:00:27]} 30. Nxc1 {[%emt 0:01:01]} Bxf1 {[%emt 0:00:15]} 31. Kxf1 {[%emt 0:00:32]} Qa6+ {[%emt 0:02:34]} 32. Ke1 {[%emt 0:01:09]} exf5 {[%emt 0:01:06]} 33. Qxf5 {[%emt 0:00:10]} g6 {[%emt 0:00:18]} 34. Qf3 {[%emt 0:01:40]} Qc6 {[%emt 0:00:16]} 35. Qg2 {[%emt 0:00:58]} Bh6 {[%emt 0:01:37]} 36. Nd3 {[%emt 0:00:07]} Nd7 {[%emt 0:01:00]} 37. g4 {[%emt 0:01:24]} Bg5 {[%emt 0:00:53]} 38. Qf2 {[%emt 0:00:13]} Nf8 {[%emt 0:01:23]} 39. h4 {[%emt 0:00:40]} Be7 {[%emt 0:00:10]} 40. g5 {[%emt 0:00:37]} Ne6 {[%emt 0:00:47]} 41. Kd1 {[%emt 0:31:08]} Ng7 {[%emt 0:02:12]} 42. Nf4 {[%emt 0:00:00]} Nf5 {[%emt 0:08:02]} 43. Ng2 {[%emt 0:00:00]} Bd8 {[%emt 0:04:30]} 44. Kd2 {[%emt 0:00:00]} Bb6 {[%emt 0:04:12]} 45. Nf4 {[%emt 0:00:00]} Bd8 {[%emt 0:04:54]} 46. Ng2 {[%emt 0:00:00]} Qd7 {[%emt 0:01:46]} 47. Nf4 {[%emt 0:02:04]} Qc6 {[%emt 0:05:00]} 1/2-1/2

[Event "WYCC U18 Girls 2019"]
[Site "Mumbai"]
[Date "2019.10.03"]
[Round "3.4"]
[White "Muetsch, Annmarie"]
[Black "Kucharska, Honorata"]
[Result "0-1"]
[ECO "C01"]
[WhiteElo "2266"]
[BlackElo "2114"]
[Annotator "NA"]
[PlyCount "60"]
[EventDate "2019.10.02"]
[EventType "swiss"]
[EventCountry "IND"]
[SourceTitle "playchess.com"]
[Source "ChessBase"]
[SourceQuality "1"]
[TimeControl "40/5400+30:1800+30"]

1. e4 {[%emt 0:00:00]} e6 {[%emt 0:00:00]} 2. d4 {[%emt 0:00:00]} d5 {[%emt 0:00:00]} 3. exd5 {[%emt 0:00:15]} exd5 {[%emt 0:00:00]} 4. Nf3 {[%emt 0:00:08]} Bd6 {[%emt 0:00:34]} 5. Bd3 {[%emt 0:00:28]} Nc6 {[%emt 0:00:59]} 6. O-O {[%emt 0:02:53]} Nge7 {[%emt 0:00:59]} 7. c3 {[%emt 0:02:01]} Bg4 {[%emt 0:01:08]} 8. Nbd2 {[%emt 0:01:44]} Qd7 {[%emt 0:01:29]} 9. Re1 {[%emt 0:03:09]} O-O-O {[%emt 0:03:01]} 10. b4 {[%emt 0:02:03]} Rde8 {[%emt 0:00:45]} 11. b5 {[%emt 0:02:54]} Nd8 {[%emt 0:00:33]} 12. Qa4 {[%emt 0:13:35]} Kb8 {[%emt 0:02:40]} 13. Ne5 {[%emt 0:05:33]} Bxe5 {[%emt 0:02:14]} 14. Rxe5 {[%emt 0:01:24]} f6 {[%emt 0:04:07]} 15. Re1 {[%emt 0:03:30]} Ng6 {[%emt 0:08:18]} 16. Rxe8 {[%emt 0:05:52]} Rxe8 {[%emt 0:01:52]} 17. Nf1 {[%emt 0:00:15]} Nh4 {[%emt 0:07:47]} 18. Ne3 {[%emt 0:22:35]} Nf7 {[%emt 0:10:52]} 19. Qc2 {[%emt 0:07:05]} Ng5 {[%emt 0:04:16]} 20. Be2 {[%emt 0:05:19]} Bf3 {[%emt 0:07:10]} 21. Bxf3 {[%emt 0:02:15]} Ngxf3+ {[%emt 0:02:33]} 22. Kh1 {[%emt 0:01:57]} f5 {[%emt 0:07:14]} 23. Bd2 {[%emt 0:12:58]} f4 {[%emt 0:01:27]} 24. Nf5 {[%emt 0:01:39]} Nxf5 {[%emt 0:02:22]} 25. gxf3 {[%emt 0:00:09]} Nh4 {[%emt 0:00:20]} 26. Rg1 {[%emt 0:01:50]} Qh3 {[%emt 0:00:26]} 27. Qd1 {[%emt 0:00:22]} Nxf3 {[%emt 0:02:46]} 28. Rg2 {[%emt 0:00:49]} g5 {[%emt 0:00:49]} 29. a4 {[%emt 0:00:45]} Nh4 {[%emt 0:05:07]} 30. Rg4 {[%emt 0:00:52]} Qd3 {[%emt 0:00:49]} 0-1

[Event "WYCC U18 Girls 2019"]
[Site "Mumbai"]
[Date "2019.10.03"]
[Round "3.5"]
[White "Tarini Goyal"]
[Black "Shpanko, Nadiia"]
[Result "1/2-1/2"]
[ECO "E06"]
[WhiteElo "2128"]
[BlackElo "2213"]
[Annotator "NA"]
[PlyCount "49"]
[EventDate "2019.10.02"]
[EventType "swiss"]
[EventCountry "IND"]
[SourceTitle "playchess.com"]
[Source "ChessBase"]
[SourceQuality "1"]
[TimeControl "40/5400+30:1800+30"]

1. d4 {[%emt 0:00:12]} Nf6 {[%emt 0:00:00]} 2. c4 {[%emt 0:00:06]} e6 {[%emt 0:00:00]} 3. g3 {[%emt 0:00:06]} d5 {[%emt 0:00:25]} 4. Nf3 {[%emt 0:00:10]} Be7 {[%emt 0:00:09]} 5. Bg2 {[%emt 0:00:11]} O-O {[%emt 0:00:06]} 6. Nc3 {[%emt 0:00:17]} dxc4 {[%emt 0:00:59]} 7. Ne5 {[%emt 0:02:21]} Nc6 {[%emt 0:00:11]} 8. Bxc6 {[%emt 0:00:21]} bxc6 {[%emt 0:00:06]} 9. Nxc6 {[%emt 0:00:05]} Qe8 {[%emt 0:00:07]} 10. Nxe7+ {[%emt 0:00:06]} Qxe7 {[%emt 0:00:07]} 11. Qa4 {[%emt 0:01:01]} c5 {[%emt 0:00:50]} 12. dxc5 {[%emt 0:00:41]} Qxc5 {[%emt 0:02:37]} 13. Be3 {[%emt 0:00:27]} Qc7 {[%emt 0:00:05]} 14. O-O-O {[%emt 0:00:24]} a5 {[%emt 0:13:52]} 15. Rd2 {[%emt 0:04:41]} Ng4 {[%emt 0:07:49]} 16. Rhd1 {[%emt 0:02:28]} Nxe3 {[%emt 0:05:58]} 17. fxe3 {[%emt 0:00:09]} Qc5 {[%emt 0:01:24]} 18. Qb5 {[%emt 0:04:22]} Qxe3 {[%emt 0:06:01]} 19. Qxc4 {[%emt 0:00:38]} Ba6 {[%emt 0:01:26]} 20. Qd4 {[%emt 0:01:13]} Qh6 {[%emt 0:01:59]} 21. e3 {[%emt 0:03:38]} Qg5 {[%emt 0:02:59]} 22. Qf4 {[%emt 0:09:10]} Qc5 {[%emt 0:00:59]} 23. Qd4 {[%emt 0:00:23]} Qg5 {[%emt 0:00:18]} 24. Qf4 {[%emt 0:00:37]} Qc5 {[%emt 0:00:07]} 25. Qd4 {[%emt 0:01:20]} 1/2-1/2